[Event "*** SCC Grand Prix: Titled Tuesday Blitz"]
[Site "Chess.com"]
[Date "2020.09.08"]
[Round "6"]
[White "beto-betun"]
[Black "jamalm2"]
[Result "1-0"]
[WhiteElo "2126"]
[BlackElo "1909"]
[TimeControl "180+1"]
[EndTime "11:06:51 PDT"]
[Termination "beto-betun won on time"]

1. d4 {[%clk 0:03:00.9]} 1... Nf6 {[%clk 0:02:57.6]} 2. Nf3 {[%clk 0:03:00.7]}
2... e6 {[%clk 0:02:57.6]} 3. g3 {[%clk 0:03:00.4]} 3... b6 {[%clk 0:02:57.4]}
4. Bg2 {[%clk 0:03:00.3]} 4... Bb7 {[%clk 0:02:57.8]} 5. O-O {[%clk 0:03:00]}
5... Be7 {[%clk 0:02:55.3]} 6. c4 {[%clk 0:02:59.9]} 6... O-O {[%clk 0:02:54]}
7. b3 {[%clk 0:02:59]} 7... d6 {[%clk 0:02:53.3]} 8. Bb2 {[%clk 0:02:56.6]} 8...
Nbd7 {[%clk 0:02:53.2]} 9. Nbd2 {[%clk 0:02:55.1]} 9... Re8 {[%clk 0:02:53.3]}
10. Rc1 {[%clk 0:02:52.1]} 10... Bf8 {[%clk 0:02:51.3]} 11. Qc2 {[%clk
0:02:50.2]} 11... e5 {[%clk 0:02:50.9]} 12. e3 {[%clk 0:02:47.6]} 12... e4
{[%clk 0:02:49.2]} 13. Ng5 {[%clk 0:02:46.2]} 13... h6 {[%clk 0:02:34.1]} 14.
Ngxe4 {[%clk 0:02:39.7]} 14... Nxe4 {[%clk 0:02:33.5]} 15. Nxe4 {[%clk
0:02:40.6]} 15... Rb8 {[%clk 0:02:13]} 16. d5 {[%clk 0:02:38]} 16... f5 {[%clk
0:02:01.1]} 17. Nc3 {[%clk 0:02:36.4]} 17... Qg5 {[%clk 0:01:56.8]} 18. Nb5
{[%clk 0:02:30.9]} 18... Rbc8 {[%clk 0:01:31.8]} 19. Nxa7 {[%clk 0:02:28.2]}
19... Nf6 {[%clk 0:01:17.5]} 20. Nxc8 {[%clk 0:02:26.1]} 20... Bxc8 {[%clk
0:01:17.2]} 21. Qc3 {[%clk 0:02:07.9]} 21... Ne4 {[%clk 0:01:12.7]} 22. Qd4
{[%clk 0:01:39.2]} 22... Be7 {[%clk 0:01:10.1]} 23. f4 {[%clk 0:01:36.9]} 23...
Qg6 {[%clk 0:01:07.8]} 24. Bxe4 {[%clk 0:01:36.7]} 24... fxe4 {[%clk 0:01:00.5]}
25. f5 {[%clk 0:01:35.9]} 25... Qg4 {[%clk 0:00:52.8]} 26. f6 {[%clk 0:01:29.7]}
26... Bxf6 {[%clk 0:00:45.2]} 27. Rxf6 {[%clk 0:01:29.6]} 27... gxf6 {[%clk
0:00:44.2]} 28. Qxf6 {[%clk 0:01:30.5]} 28... Qg5 {[%clk 0:00:35.9]} 29. Qh8+
{[%clk 0:01:23.7]} 29... Kf7 {[%clk 0:00:30.5]} 30. Rf1+ {[%clk 0:01:23.7]}
30... Ke7 {[%clk 0:00:23.8]} 31. Bf6+ {[%clk 0:01:23.2]} 31... Kd7 {[%clk
0:00:20.4]} 32. Bxg5 {[%clk 0:01:21.5]} 32... Rxh8 {[%clk 0:00:18.6]} 33. Rf7+
{[%clk 0:01:19.9]} 33... Ke8 {[%clk 0:00:15.3]} 34. Re7+ {[%clk 0:01:18.9]}
34... Kf8 {[%clk 0:00:11.6]} 35. Rxc7 {[%clk 0:01:13.5]} 35... Bh3 {[%clk
0:00:06.4]} 36. Bf4 {[%clk 0:01:11]} 1-0

[Event "*** SCC Grand Prix: Titled Tuesday Blitz"]
[Site "Chess.com"]
[Date "2020.09.08"]
[Round "6"]
[White "mr_gustavo"]
[Black "WiktoriaPOL"]
[Result "1-0"]
[WhiteElo "2247"]
[BlackElo "1964"]
[TimeControl "180+1"]
[EndTime "11:06:56 PDT"]
[Termination "mr_gustavo won by checkmate"]

1. d4 {[%clk 0:03:00.9]} 1... Nf6 {[%clk 0:02:58.9]} 2. c4 {[%clk 0:03:00.8]}
2... g6 {[%clk 0:02:58.4]} 3. g3 {[%clk 0:03:01]} 3... Bg7 {[%clk 0:02:58.2]} 4.
Bg2 {[%clk 0:03:01.5]} 4... O-O {[%clk 0:02:57.8]} 5. Nf3 {[%clk 0:03:01.4]}
5... d6 {[%clk 0:02:58]} 6. O-O {[%clk 0:03:01.9]} 6... Nc6 {[%clk 0:02:56.6]}
7. Nc3 {[%clk 0:03:02.4]} 7... Bg4 {[%clk 0:02:55.7]} 8. d5 {[%clk 0:03:01.4]}
8... Na5 {[%clk 0:02:55.1]} 9. Qd3 {[%clk 0:02:55.8]} 9... c5 {[%clk 0:02:53.3]}
10. h3 {[%clk 0:02:55.5]} 10... Bd7 {[%clk 0:02:48.9]} 11. e4 {[%clk 0:02:54.8]}
11... a6 {[%clk 0:02:15]} 12. e5 {[%clk 0:02:53.1]} 12... dxe5 {[%clk
0:02:11.7]} 13. Nxe5 {[%clk 0:02:54]} 13... Bf5 {[%clk 0:02:11]} 14. Qe2 {[%clk
0:02:51.7]} 14... Nd7 {[%clk 0:02:08.4]} 15. Nf3 {[%clk 0:02:14.1]} 15... Nb6
{[%clk 0:02:01.7]} 16. g4 {[%clk 0:02:08.4]} 16... Bd7 {[%clk 0:01:57.9]} 17.
Ne5 {[%clk 0:01:57]} 17... Bxe5 {[%clk 0:01:55.9]} 18. Qxe5 {[%clk 0:01:57.9]}
18... Nbxc4 {[%clk 0:01:55.3]} 19. Qe2 {[%clk 0:01:53.2]} 19... Nd6 {[%clk
0:01:51.7]} 20. b3 {[%clk 0:01:52.2]} 20... c4 {[%clk 0:01:49.2]} 21. b4 {[%clk
0:01:48]} 21... Qb6 {[%clk 0:01:20.1]} 22. bxa5 {[%clk 0:01:45.2]} 22... Qxa5
{[%clk 0:01:21]} 23. Bb2 {[%clk 0:01:43.1]} 23... b5 {[%clk 0:01:20.1]} 24. Ne4
{[%clk 0:01:36]} 24... Nxe4 {[%clk 0:01:10.1]} 25. Qxe4 {[%clk 0:01:36.9]} 25...
c3 {[%clk 0:01:06.8]} 26. Bc1 {[%clk 0:01:35.8]} 26... b4 {[%clk 0:01:04.8]} 27.
Qxe7 {[%clk 0:01:32.2]} 27... Bb5 {[%clk 0:01:02.1]} 28. Bh6 {[%clk 0:01:30.8]}
28... Qd8 {[%clk 0:00:52.6]} 29. Qe5 {[%clk 0:01:14.7]} 29... f6 {[%clk
0:00:51.4]} 30. Qe6+ {[%clk 0:01:15.1]} 30... Rf7 {[%clk 0:00:46.4]} 31. d6
{[%clk 0:01:14.7]} 31... Bxf1 {[%clk 0:00:44.8]} 32. Bd5 {[%clk 0:01:06.7]}
32... Qe8 {[%clk 0:00:27.5]} 33. Qxe8+ {[%clk 0:01:05.9]} 33... Rxe8 {[%clk
0:00:25.6]} 34. Rxf1 {[%clk 0:01:06.8]} 34... Rd8 {[%clk 0:00:19.7]} 35. Re1
{[%clk 0:01:06.7]} 35... g5 {[%clk 0:00:11]} 36. d7 {[%clk 0:01:01]} 36... c2
{[%clk 0:00:06.1]} 37. Re8+ {[%clk 0:00:59.1]} 37... Rxe8 {[%clk 0:00:04.3]} 38.
dxe8=R# {[%clk 0:00:57.7]} 1-0

[Event "*** SCC Grand Prix: Titled Tuesday Blitz"]
[Site "Chess.com"]
[Date "2020.09.08"]
[Round "6"]
[White "MFguimaraes"]
[Black "Zmof"]
[Result "1-0"]
[WhiteElo "2413"]
[BlackElo "2233"]
[TimeControl "180+1"]
[EndTime "11:06:57 PDT"]
[Termination "MFguimaraes won by checkmate"]

1. e4 {[%clk 0:03:00.9]} 1... c5 {[%clk 0:02:56.9]} 2. Nf3 {[%clk 0:03:00.9]}
2... Nc6 {[%clk 0:02:55.4]} 3. d4 {[%clk 0:03:00.1]} 3... cxd4 {[%clk
0:02:55.4]} 4. Nxd4 {[%clk 0:03:01]} 4... Qb6 {[%clk 0:02:55.9]} 5. Nb3 {[%clk
0:03:00.8]} 5... Nf6 {[%clk 0:02:55.5]} 6. Nc3 {[%clk 0:03:01.2]} 6... e6 {[%clk
0:02:55.5]} 7. Be2 {[%clk 0:03:01.2]} 7... Bb4 {[%clk 0:02:54.4]} 8. Be3 {[%clk
0:02:52]} 8... Qc7 {[%clk 0:02:53.5]} 9. Bf3 {[%clk 0:02:36.6]} 9... Ne5 {[%clk
0:02:47.1]} 10. O-O {[%clk 0:02:31.1]} 10... Nxf3+ {[%clk 0:02:44.2]} 11. Qxf3
{[%clk 0:02:30.2]} 11... Bxc3 {[%clk 0:02:42.1]} 12. bxc3 {[%clk 0:02:30.2]}
12... Qxc3 {[%clk 0:02:42.3]} 13. Rad1 {[%clk 0:02:17.4]} 13... O-O {[%clk
0:02:41.1]} 14. Rd3 {[%clk 0:02:17.2]} 14... Qxc2 {[%clk 0:02:34.2]} 15. Bd4
{[%clk 0:02:16.8]} 15... d6 {[%clk 0:02:10.9]} 16. Bxf6 {[%clk 0:02:11.2]} 16...
gxf6 {[%clk 0:02:11.6]} 17. Rc1 {[%clk 0:01:57.7]} 17... Qb2 {[%clk 0:02:11.2]}
18. Rcc3 {[%clk 0:01:51.1]} 18... Bd7 {[%clk 0:01:56.1]} 19. Qxf6 {[%clk
0:01:48.1]} 19... Qb1+ {[%clk 0:01:52.6]} 20. Nc1 {[%clk 0:01:44.2]} 20... Rfc8
{[%clk 0:01:43]} 21. Qh6 {[%clk 0:01:17.5]} 21... Rxc3 {[%clk 0:01:32.7]} 22.
Rxc3 {[%clk 0:01:15.6]} 22... Qxe4 {[%clk 0:00:59.5]} 23. Rg3+ {[%clk
0:01:13.8]} 23... Qg6 {[%clk 0:00:59.5]} 24. Rxg6+ {[%clk 0:01:10.7]} 24... hxg6
{[%clk 0:00:59.4]} 25. h4 {[%clk 0:01:07.7]} 25... Rc8 {[%clk 0:00:58.5]} 26. h5
{[%clk 0:01:07]} 26... Be8 {[%clk 0:00:56.4]} 27. hxg6 {[%clk 0:01:06.3]} 27...
fxg6 {[%clk 0:00:56.2]} 28. Nd3 {[%clk 0:01:06.7]} 28... Rc7 {[%clk 0:00:43.9]}
29. Nf4 {[%clk 0:01:05.9]} 29... Rh7 {[%clk 0:00:41.5]} 30. Qg5 {[%clk
0:01:04.5]} 30... Kf7 {[%clk 0:00:39.9]} 31. Qd8 {[%clk 0:01:03.5]} 31... g5
{[%clk 0:00:28.8]} 32. Nh3 {[%clk 0:00:50.2]} 32... Rg7 {[%clk 0:00:17.7]} 33.
Nxg5+ {[%clk 0:00:47.9]} 33... Kg6 {[%clk 0:00:17.2]} 34. Nxe6 {[%clk
0:00:45.2]} 34... Rg8 {[%clk 0:00:16.8]} 35. Qg5+ {[%clk 0:00:43]} 35... Kf7
{[%clk 0:00:16.2]} 36. Nd8+ {[%clk 0:00:43.3]} 36... Kf8 {[%clk 0:00:15.4]} 37.
Qf6+ {[%clk 0:00:43.5]} 37... Bf7 {[%clk 0:00:15]} 38. Qxf7# {[%clk 0:00:44.4]}
1-0

[Event "*** SCC Grand Prix: Titled Tuesday Blitz"]
[Site "Chess.com"]
[Date "2020.09.08"]
[Round "6"]
[White "angryhorse9"]
[Black "Zemerovv"]
[Result "1-0"]
[WhiteElo "2511"]
[BlackElo "2313"]
[TimeControl "180+1"]
[EndTime "11:06:58 PDT"]
[Termination "angryhorse9 won by resignation"]

1. e4 {[%clk 0:03:00.9]} 1... e5 {[%clk 0:02:58.2]} 2. Bc4 {[%clk 0:03:00.6]}
2... Nf6 {[%clk 0:02:56.8]} 3. Nc3 {[%clk 0:03:01]} 3... Be7 {[%clk 0:02:52.1]}
4. d3 {[%clk 0:03:01.1]} 4... O-O {[%clk 0:02:51.3]} 5. f4 {[%clk 0:03:01.7]}
5... d6 {[%clk 0:02:47.1]} 6. Nf3 {[%clk 0:03:01.8]} 6... Bg4 {[%clk 0:02:44.7]}
7. h3 {[%clk 0:03:01.4]} 7... Be6 {[%clk 0:02:42.9]} 8. Bxe6 {[%clk 0:02:57.6]}
8... fxe6 {[%clk 0:02:42.1]} 9. fxe5 {[%clk 0:02:58.2]} 9... Nh5 {[%clk
0:02:39.1]} 10. O-O {[%clk 0:02:53.4]} 10... Ng3 {[%clk 0:02:36.6]} 11. Re1
{[%clk 0:02:51.1]} 11... dxe5 {[%clk 0:02:36.1]} 12. Kh2 {[%clk 0:02:48.2]}
12... Nh5 {[%clk 0:02:28]} 13. Be3 {[%clk 0:02:47.5]} 13... Bd6 {[%clk
0:02:22.2]} 14. Qd2 {[%clk 0:02:41.7]} 14... Nc6 {[%clk 0:02:12.3]} 15. Rf1
{[%clk 0:02:41.5]} 15... Nf4 {[%clk 0:02:09.1]} 16. g3 {[%clk 0:02:39.4]} 16...
Ng6 {[%clk 0:02:02.7]} 17. Qe2 {[%clk 0:02:33.4]} 17... Qd7 {[%clk 0:02:01.5]}
18. Rad1 {[%clk 0:02:24.4]} 18... h6 {[%clk 0:01:55.2]} 19. Kg2 {[%clk
0:02:21.5]} 19... Rf7 {[%clk 0:01:54.5]} 20. Nd2 {[%clk 0:02:10.7]} 20... Raf8
{[%clk 0:01:52.6]} 21. Rxf7 {[%clk 0:02:09.3]} 21... Rxf7 {[%clk 0:01:51]} 22.
Nc4 {[%clk 0:02:09]} 22... Nd4 {[%clk 0:01:49.2]} 23. Bxd4 {[%clk 0:02:07]}
23... exd4 {[%clk 0:01:49]} 24. Nb1 {[%clk 0:02:07]} 24... Be5 {[%clk
0:01:40.2]} 25. Nbd2 {[%clk 0:01:59.3]} 25... b5 {[%clk 0:01:36.7]} 26. Nxe5
{[%clk 0:01:58.2]} 26... Nxe5 {[%clk 0:01:36.6]} 27. Rf1 {[%clk 0:01:53.5]}
27... c5 {[%clk 0:01:35.1]} 28. Nf3 {[%clk 0:01:21.5]} 28... Nxf3 {[%clk
0:01:33.6]} 29. Rxf3 {[%clk 0:01:22.3]} 29... Rxf3 {[%clk 0:01:33.2]} 30. Qxf3
{[%clk 0:01:22.9]} 30... e5 {[%clk 0:01:29.2]} 31. Qf5 {[%clk 0:01:15]} 31...
Qxf5 {[%clk 0:01:25.1]} 32. exf5 {[%clk 0:01:14.4]} 32... Kf7 {[%clk 0:01:24.8]}
33. Kf3 {[%clk 0:01:14.3]} 33... Kf6 {[%clk 0:01:23.1]} 34. Ke4 {[%clk
0:01:14.3]} 34... h5 {[%clk 0:01:18.4]} 35. a3 {[%clk 0:00:44.3]} 35... c4
{[%clk 0:01:16.1]} 36. b3 {[%clk 0:00:35.5]} 36... cxb3 {[%clk 0:01:03.9]} 37.
cxb3 {[%clk 0:00:34.5]} 37... a5 {[%clk 0:01:03.5]} 38. b4 {[%clk 0:00:23.6]}
38... a4 {[%clk 0:00:59.3]} 39. h4 {[%clk 0:00:22.2]} 1-0

[Event "*** SCC Grand Prix: Titled Tuesday Blitz"]
[Site "Chess.com"]
[Date "2020.09.08"]
[Round "6"]
[White "kosya4ok"]
[Black "SARGISMV"]
[Result "1-0"]
[WhiteElo "2678"]
[BlackElo "2494"]
[TimeControl "180+1"]
[EndTime "11:07:05 PDT"]
[Termination "kosya4ok won by resignation"]

1. d4 {[%clk 0:03:00.9]} 1... c5 {[%clk 0:02:58.7]} 2. d5 {[%clk 0:02:59.8]}
2... e6 {[%clk 0:02:59.1]} 3. e4 {[%clk 0:02:55.9]} 3... exd5 {[%clk 0:02:58.7]}
4. exd5 {[%clk 0:02:53.6]} 4... d6 {[%clk 0:02:59.6]} 5. Nc3 {[%clk 0:02:52.6]}
5... Ne7 {[%clk 0:02:56.5]} 6. h4 {[%clk 0:02:50.3]} 6... a6 {[%clk 0:02:51.3]}
7. a4 {[%clk 0:02:49.2]} 7... Ng6 {[%clk 0:02:41.9]} 8. h5 {[%clk 0:02:48.1]}
8... Ne5 {[%clk 0:02:41.8]} 9. Be2 {[%clk 0:02:40.5]} 9... h6 {[%clk 0:02:37.9]}
10. Bf4 {[%clk 0:02:18.6]} 10... Bf5 {[%clk 0:02:18.6]} 11. Bxe5 {[%clk
0:02:00.6]} 11... dxe5 {[%clk 0:02:19.5]} 12. Nf3 {[%clk 0:02:00.9]} 12... Bd6
{[%clk 0:02:13.9]} 13. Nh4 {[%clk 0:01:55.9]} 13... Bh7 {[%clk 0:02:12.1]} 14.
Bd3 {[%clk 0:01:53.3]} 14... O-O {[%clk 0:01:57.8]} 15. Bxh7+ {[%clk 0:01:43.6]}
15... Kxh7 {[%clk 0:01:58.7]} 16. Qd3+ {[%clk 0:01:42.8]} 16... Kg8 {[%clk
0:01:58.1]} 17. Ne4 {[%clk 0:01:39.7]} 17... f5 {[%clk 0:01:25.3]} 18. Nxd6
{[%clk 0:01:11.3]} 18... Qxd6 {[%clk 0:01:26.2]} 19. Nxf5 {[%clk 0:01:10.3]}
19... Qf6 {[%clk 0:01:26.1]} 20. g4 {[%clk 0:01:07.5]} 20... e4 {[%clk
0:01:22.6]} 21. Qb3 {[%clk 0:01:02.4]} 21... Nd7 {[%clk 0:01:17.7]} 22. O-O-O
{[%clk 0:00:57.4]} 22... b5 {[%clk 0:01:15]} 23. d6+ {[%clk 0:00:48.8]} 23... c4
{[%clk 0:01:14.2]} 24. Qc3 {[%clk 0:00:49.2]} 24... Qxc3 {[%clk 0:00:32.1]} 25.
bxc3 {[%clk 0:00:50.1]} 25... bxa4 {[%clk 0:00:32.6]} 26. Rd4 {[%clk 0:00:45.1]}
26... Nf6 {[%clk 0:00:21.2]} 27. Rg1 {[%clk 0:00:37.9]} 27... Rac8 {[%clk
0:00:17.7]} 28. Ne7+ {[%clk 0:00:35.3]} 28... Kf7 {[%clk 0:00:17.2]} 29. Nxc8
{[%clk 0:00:36.2]} 29... Rxc8 {[%clk 0:00:17.8]} 30. g5 {[%clk 0:00:37.1]} 30...
hxg5 {[%clk 0:00:16.9]} 31. Rxg5 {[%clk 0:00:38]} 31... Rd8 {[%clk 0:00:16]} 32.
Ra5 {[%clk 0:00:36.6]} 32... Ke6 {[%clk 0:00:15.2]} 33. Rxa6 {[%clk 0:00:35.5]}
33... Rd7 {[%clk 0:00:15.8]} 34. Rxa4 {[%clk 0:00:29]} 1-0

[Event "*** SCC Grand Prix: Titled Tuesday Blitz"]
[Site "Chess.com"]
[Date "2020.09.08"]
[Round "6"]
[White "Karina_Ivanova"]
[Black "Bastiandash"]
[Result "1-0"]
[WhiteElo "2263"]
[BlackElo "2390"]
[TimeControl "180+1"]
[EndTime "11:07:05 PDT"]
[Termination "Karina_Ivanova won on time"]

1. Nf3 {[%clk 0:02:58.8]} 1... Nf6 {[%clk 0:02:59.9]} 2. g3 {[%clk 0:02:58.5]}
2... e6 {[%clk 0:02:58.8]} 3. Bg2 {[%clk 0:02:58.4]} 3... c5 {[%clk 0:02:58.3]}
4. c4 {[%clk 0:02:57.7]} 4... Nc6 {[%clk 0:02:46.4]} 5. d4 {[%clk 0:02:57.3]}
5... cxd4 {[%clk 0:02:47.3]} 6. Nxd4 {[%clk 0:02:57.1]} 6... Qc7 {[%clk
0:02:44.2]} 7. O-O {[%clk 0:02:55.3]} 7... a6 {[%clk 0:02:44]} 8. Nc3 {[%clk
0:02:54.8]} 8... b6 {[%clk 0:02:42]} 9. Bf4 {[%clk 0:02:38.4]} 9... e5 {[%clk
0:02:34.7]} 10. Bxe5 {[%clk 0:02:31]} 10... Nxe5 {[%clk 0:01:30.3]} 11. Bxa8
{[%clk 0:02:26.5]} 11... h5 {[%clk 0:01:26.3]} 12. h4 {[%clk 0:01:51.7]} 12...
g5 {[%clk 0:01:12.5]} 13. hxg5 {[%clk 0:01:51]} 13... Nfg4 {[%clk 0:01:07.3]}
14. Nf3 {[%clk 0:01:03.6]} 14... h4 {[%clk 0:00:55.8]} 15. Nxe5 {[%clk
0:00:59.1]} 15... Nxe5 {[%clk 0:00:22.6]} 16. Ne4 {[%clk 0:00:32.4]} 16... hxg3
{[%clk 0:00:20.4]} 17. Nxg3 {[%clk 0:00:30.8]} 17... Bc5 {[%clk 0:00:17.2]} 18.
e3 {[%clk 0:00:26.7]} 18... d6 {[%clk 0:00:11]} 19. b4 {[%clk 0:00:21.5]} 19...
Bxb4 {[%clk 0:00:09.9]} 20. Qa4+ {[%clk 0:00:21.2]} 20... Bd7 {[%clk 0:00:05.7]}
21. Qxb4 {[%clk 0:00:21.1]} 21... Ke7 {[%clk 0:00:04.6]} 22. Bg2 {[%clk
0:00:20.3]} 22... Nc6 {[%clk 0:00:02]} 23. Qc3 {[%clk 0:00:18.6]} 1-0

[Event "*** SCC Grand Prix: Titled Tuesday Blitz"]
[Site "Chess.com"]
[Date "2020.09.08"]
[Round "6"]
[White "sergeikim"]
[Black "AlexandraBotez"]
[Result "1-0"]
[WhiteElo "2472"]
[BlackElo "2238"]
[TimeControl "180+1"]
[EndTime "11:07:08 PDT"]
[Termination "sergeikim won by resignation"]

1. d4 {[%clk 0:03:00.9]} 1... Nf6 {[%clk 0:02:57.9]} 2. c4 {[%clk 0:03:00.6]}
2... g6 {[%clk 0:02:55.4]} 3. Nc3 {[%clk 0:03:00.5]} 3... Bg7 {[%clk 0:02:55.7]}
4. e4 {[%clk 0:03:00.4]} 4... d6 {[%clk 0:02:49]} 5. Nge2 {[%clk 0:03:00.1]}
5... O-O {[%clk 0:02:49.5]} 6. Ng3 {[%clk 0:02:59.7]} 6... Nbd7 {[%clk
0:02:50.1]} 7. Be2 {[%clk 0:02:59.4]} 7... e5 {[%clk 0:02:50.7]} 8. d5 {[%clk
0:02:58.9]} 8... a5 {[%clk 0:02:49.5]} 9. O-O {[%clk 0:02:58.1]} 9... Nc5 {[%clk
0:02:49.8]} 10. Be3 {[%clk 0:02:56.7]} 10... b6 {[%clk 0:02:44.8]} 11. h3 {[%clk
0:02:55.7]} 11... h5 {[%clk 0:02:37.1]} 12. Bg5 {[%clk 0:02:50.6]} 12... Qe8
{[%clk 0:02:31.9]} 13. Qd2 {[%clk 0:02:48.2]} 13... Bd7 {[%clk 0:02:24.6]} 14.
Rae1 {[%clk 0:02:41.1]} 14... Nh7 {[%clk 0:02:23.4]} 15. Be3 {[%clk 0:02:30.9]}
15... Qe7 {[%clk 0:02:19.6]} 16. f4 {[%clk 0:02:18.5]} 16... h4 {[%clk
0:02:18.3]} 17. Nh1 {[%clk 0:02:17.6]} 17... exf4 {[%clk 0:02:08.8]} 18. Bxf4
{[%clk 0:02:08.6]} 18... Nxe4 {[%clk 0:02:04.8]} 19. Nxe4 {[%clk 0:02:00.6]}
19... Qxe4 {[%clk 0:02:03.4]} 20. Be3 {[%clk 0:01:48]} 20... Qe5 {[%clk
0:01:50.7]} 21. b3 {[%clk 0:01:41.6]} 21... Bf5 {[%clk 0:01:30.9]} 22. Nf2
{[%clk 0:01:35.8]} 22... Rae8 {[%clk 0:01:22.3]} 23. Bh6 {[%clk 0:01:31.6]}
23... Qg3 {[%clk 0:01:03.6]} 24. Bxg7 {[%clk 0:01:24.8]} 24... Kxg7 {[%clk
0:01:03.7]} 25. Bg4 {[%clk 0:01:18.5]} 25... Ng5 {[%clk 0:00:45.8]} 26. Qxg5
{[%clk 0:01:12.3]} 26... f6 {[%clk 0:00:32.6]} 27. Qd2 {[%clk 0:01:07.5]} 27...
Re5 {[%clk 0:00:18.4]} 28. Bxf5 {[%clk 0:01:01.9]} 28... gxf5 {[%clk 0:00:11.1]}
29. Nd3 {[%clk 0:00:53.1]} 29... Rxe1 {[%clk 0:00:09.2]} 30. Rxe1 {[%clk
0:00:49.6]} 30... Rf7 {[%clk 0:00:09.3]} 31. Nf4 {[%clk 0:00:47]} 31... Kh7
{[%clk 0:00:03.8]} 32. Ne6 {[%clk 0:00:40.8]} 32... Rd7 {[%clk 0:00:03.4]} 33.
Qf2 {[%clk 0:00:38.3]} 33... Qg5 {[%clk 0:00:03.2]} 34. Nxg5+ {[%clk 0:00:36.2]}
1-0

[Event "*** SCC Grand Prix: Titled Tuesday Blitz"]
[Site "Chess.com"]
[Date "2020.09.08"]
[Round "6"]
[White "Mambastik-Fantastic"]
[Black "FMalexhdez"]
[Result "1-0"]
[WhiteElo "2302"]
[BlackElo "2207"]
[TimeControl "180+1"]
[EndTime "11:07:08 PDT"]
[Termination "Mambastik-Fantastic won on time"]

1. e4 {[%clk 0:03:00.9]} 1... c5 {[%clk 0:02:59.6]} 2. Nf3 {[%clk 0:03:00.3]}
2... d6 {[%clk 0:03:00.1]} 3. d4 {[%clk 0:03:00.1]} 3... cxd4 {[%clk 0:03:00.7]}
4. Nxd4 {[%clk 0:03:00.4]} 4... Nf6 {[%clk 0:03:01]} 5. Nc3 {[%clk 0:03:00.7]}
5... a6 {[%clk 0:03:00.3]} 6. Be3 {[%clk 0:03:00.7]} 6... e5 {[%clk 0:03:00.6]}
7. Nb3 {[%clk 0:03:00.1]} 7... Be6 {[%clk 0:03:00.2]} 8. Qd2 {[%clk 0:03:00.3]}
8... Nbd7 {[%clk 0:03:00.4]} 9. O-O-O {[%clk 0:03:00.5]} 9... Qc7 {[%clk
0:02:59.8]} 10. f4 {[%clk 0:03:00.1]} 10... exf4 {[%clk 0:02:56.1]} 11. Bxf4
{[%clk 0:02:58.9]} 11... Ne5 {[%clk 0:02:56.7]} 12. h3 {[%clk 0:02:56.9]} 12...
Rc8 {[%clk 0:02:55]} 13. Kb1 {[%clk 0:02:56.5]} 13... b5 {[%clk 0:02:48.5]} 14.
g4 {[%clk 0:02:55.3]} 14... b4 {[%clk 0:02:36]} 15. Nd5 {[%clk 0:02:47.7]} 15...
Bxd5 {[%clk 0:02:34.7]} 16. exd5 {[%clk 0:02:47.7]} 16... Nfd7 {[%clk 0:02:21]}
17. Bxa6 {[%clk 0:02:43]} 17... Rb8 {[%clk 0:02:01.9]} 18. Rhe1 {[%clk
0:02:33.9]} 18... Be7 {[%clk 0:02:00.2]} 19. Nd4 {[%clk 0:02:27.9]} 19... O-O
{[%clk 0:01:58.7]} 20. Nf5 {[%clk 0:02:27.4]} 20... Bf6 {[%clk 0:01:58.3]} 21.
g5 {[%clk 0:02:24.1]} 21... Bd8 {[%clk 0:01:58.3]} 22. Bd3 {[%clk 0:02:15.9]}
22... Qa5 {[%clk 0:01:53.1]} 23. Nxd6 {[%clk 0:02:06.5]} 23... Nxd3 {[%clk
0:01:41.7]} 24. Qxd3 {[%clk 0:02:02.9]} 24... Ra8 {[%clk 0:01:39]} 25. Qc4
{[%clk 0:01:58.4]} 25... Bc7 {[%clk 0:01:14.2]} 26. Nb7 {[%clk 0:01:38.9]} 26...
Qa7 {[%clk 0:01:12.8]} 27. Bxc7 {[%clk 0:01:23.7]} 27... Qxb7 {[%clk 0:01:11.7]}
28. Re7 {[%clk 0:01:18.6]} 28... Nb6 {[%clk 0:01:09.2]} 29. Qxb4 {[%clk
0:01:14.3]} 29... Qa7 {[%clk 0:00:58.4]} 30. Bxb6 {[%clk 0:01:04.7]} 30... Qxa2+
{[%clk 0:00:56.1]} 31. Kc1 {[%clk 0:01:04.9]} 31... Rfc8 {[%clk 0:00:47.5]} 32.
Rc7 {[%clk 0:00:57]} 32... Rd8 {[%clk 0:00:38.6]} 33. d6 {[%clk 0:00:56.2]}
33... Ra4 {[%clk 0:00:34.2]} 34. Qb3 {[%clk 0:00:50.9]} 34... Qa1+ {[%clk
0:00:33.1]} 35. Kd2 {[%clk 0:00:51]} 35... Rxd6+ {[%clk 0:00:33.3]} 36. Kc3
{[%clk 0:00:42]} 1-0

[Event "*** SCC Grand Prix: Titled Tuesday Blitz"]
[Site "Chess.com"]
[Date "2020.09.08"]
[Round "6"]
[White "sergiochess83"]
[Black "albi1999"]
[Result "1-0"]
[WhiteElo "2835"]
[BlackElo "2631"]
[TimeControl "180+1"]
[EndTime "11:07:10 PDT"]
[Termination "sergiochess83 won by resignation"]

1. e4 {[%clk 0:03:00.9]} 1... c6 {[%clk 0:02:53.8]} 2. d4 {[%clk 0:03:00.5]}
2... d5 {[%clk 0:02:54.7]} 3. e5 {[%clk 0:03:00.8]} 3... Bf5 {[%clk 0:02:54.1]}
4. Nf3 {[%clk 0:03:01.1]} 4... e6 {[%clk 0:02:51.6]} 5. Be2 {[%clk 0:03:01.6]}
5... Nd7 {[%clk 0:02:50.9]} 6. O-O {[%clk 0:03:01.2]} 6... h6 {[%clk 0:02:51]}
7. Nbd2 {[%clk 0:03:01.6]} 7... Ne7 {[%clk 0:02:51]} 8. Nb3 {[%clk 0:03:01.9]}
8... g5 {[%clk 0:02:49.5]} 9. a4 {[%clk 0:02:58.6]} 9... Qc7 {[%clk 0:02:47.3]}
10. Bd2 {[%clk 0:02:58.3]} 10... Bg7 {[%clk 0:02:41.7]} 11. Bb4 {[%clk
0:02:57.7]} 11... Ng6 {[%clk 0:02:30.1]} 12. Bd6 {[%clk 0:02:46]} 12... Qd8
{[%clk 0:02:24.9]} 13. Bd3 {[%clk 0:02:36.6]} 13... Bxd3 {[%clk 0:02:24.1]} 14.
Qxd3 {[%clk 0:02:37.5]} 14... Bf8 {[%clk 0:02:21.9]} 15. Bxf8 {[%clk 0:02:29.5]}
15... Kxf8 {[%clk 0:02:22.8]} 16. g3 {[%clk 0:02:28.5]} 16... Kg7 {[%clk
0:02:20.4]} 17. a5 {[%clk 0:02:27.8]} 17... f6 {[%clk 0:02:16.3]} 18. exf6+
{[%clk 0:02:23.9]} 18... Qxf6 {[%clk 0:02:17.2]} 19. Rae1 {[%clk 0:02:18.4]}
19... Rhf8 {[%clk 0:02:16.1]} 20. Re3 {[%clk 0:02:13.7]} 20... Rae8 {[%clk
0:02:04.6]} 21. Qc3 {[%clk 0:02:04.8]} 21... g4 {[%clk 0:01:48.8]} 22. Ne5
{[%clk 0:01:42.4]} 22... Ndxe5 {[%clk 0:01:39.2]} 23. dxe5 {[%clk 0:01:43.3]}
23... Qg5 {[%clk 0:01:33.7]} 24. a6 {[%clk 0:01:43.6]} 24... bxa6 {[%clk
0:01:25.1]} 25. Qxc6 {[%clk 0:01:43.5]} 25... Nxe5 {[%clk 0:01:12.8]} 26. Qc3
{[%clk 0:01:31.2]} 26... Rf5 {[%clk 0:01:02.8]} 27. Rfe1 {[%clk 0:01:15.8]}
27... Qf6 {[%clk 0:00:30.2]} 28. Rxe5 {[%clk 0:01:07.2]} 28... Rxf2 {[%clk
0:00:30.4]} 29. Nc5 {[%clk 0:00:35.8]} 29... d4 {[%clk 0:00:11.5]} 30. Qxd4
{[%clk 0:00:31]} 30... Rxh2 {[%clk 0:00:04.8]} 31. Kxh2 {[%clk 0:00:25]} 1-0